[Event "7° Rencontres Internationales des Echecs Francophones"]
[Site "PARIS, France"]
[Date "2019.08.10"]
[Round "2.1"]
[White "Soubirou, Oriane"]
[Black "Moussard, Jules"]
[Result "0-1"]
[TimeControl "90'+30' + 30seconds/move"]
[WhiteElo "2119"]
[BlackElo "2613"]

1. e4 {[%clk 00:05:04]} {[%emt 00:15:38]} d6 {[%clk 00:05:05]} {[%emt
00:00:01]} 2. d4 {[%clk 00:05:04]} {[%emt 00:00:02]} Nf6 {[%clk 00:05:07]} 3.
Nc3 {[%clk 00:05:06]} {[%emt 00:00:03]} g6 {[%clk 00:05:08]} {[%emt 00:00:01]}
4. Bg5 {[%clk 00:04:59]} {[%emt 00:00:10]} c6 {[%clk 00:05:02]} {[%emt
00:00:09]} 5. Qd2 {[%clk 00:04:51]} {[%emt 00:00:11]} Nbd7 {[%clk 00:05:02]}
{[%emt 00:00:03]} 6. Nf3 {[%clk 00:04:43]} {[%emt 00:00:10]} Qa5 {[%clk
00:04:46]} {[%emt 00:00:20]} 7. Be2 {[%clk 00:03:45]} {[%emt 00:01:01]} Bg7
{[%clk 00:04:43]} {[%emt 00:00:06]} 8. O-O {[%clk 00:03:29]} {[%emt 00:00:19]}
O-O {[%clk 00:04:44]} {[%emt 00:00:03]} 9. Bh6 {[%clk 00:03:16]} {[%emt
00:00:16]} e5 {[%clk 00:04:38]} {[%emt 00:00:09]} 10. Bxg7 {[%clk 00:03:03]}
{[%emt 00:00:15]} Kxg7 {[%clk 00:04:40]} {[%emt 00:00:01]} 11. Rad1 {[%clk
00:02:37]} {[%emt 00:00:30]} b5 {[%clk 00:04:36]} {[%emt 00:00:07]} 12. dxe5
{[%clk 00:02:37]} {[%emt 00:00:03]} dxe5 {[%clk 00:04:37]} 13. a3 {[%clk
00:02:21]} {[%emt 00:00:19]} Bb7 {[%clk 00:04:35]} {[%emt 00:00:05]} 14. Qd6
{[%clk 00:02:09]} {[%emt 00:00:15]} Rfe8 {[%clk 00:04:32]} {[%emt 00:00:07]} 15.
Rfe1 {[%clk 00:01:41]} {[%emt 00:00:30]} Rad8 {[%clk 00:04:31]} {[%emt
00:00:04]} 16. Qb4 {[%clk 00:01:34]} {[%emt 00:00:10]} Qb6 {[%clk 00:04:31]}
{[%emt 00:00:04]} 17. Bf1 {[%clk 00:01:05]} {[%emt 00:00:32]} a5 {[%clk
00:04:09]} {[%emt 00:00:25]} 18. Qb3 {[%clk 00:01:07]} Nc5 {[%clk 00:04:11]}
{[%emt 00:00:01]} 19. Qa2 {[%clk 00:01:07]} {[%emt 00:00:03]} Rxd1 {[%clk
00:04:08]} {[%emt 00:00:05]} 20. Nxd1 {[%clk 00:00:49]} {[%emt 00:00:22]} Ncxe4
{[%clk 00:04:09]} {[%emt 00:00:02]} 21. Bd3 {[%clk 00:00:48]} {[%emt 00:00:03]}
c5 {[%clk 00:04:08]} {[%emt 00:00:04]} 22. c4 {[%clk 00:00:38]} {[%emt
00:00:14]} b4 {[%clk 00:04:05]} {[%emt 00:00:07]} 23. Ne3 {[%clk 00:00:25]}
{[%emt 00:00:15]} Nd6 {[%clk 00:03:48]} {[%emt 00:00:20]} 24. Nd5 {[%clk
00:00:12]} {[%emt 00:00:16]} Bxd5 {[%clk 00:03:46]} {[%emt 00:00:05]} 25. cxd5
{[%clk 00:00:13]} {[%emt 00:00:01]} e4 {[%clk 00:03:48]} 0-1

[Event "7° Rencontres Internationales des Echecs Francophones"]
[Site "PARIS, France"]
[Date "2019.08.10"]
[Round "2.4"]
[White "Le Roux, Jean-Pierre"]
[Black "Meftahi, Houssem"]
[Result "0-1"]
[TimeControl "90'+30' + 30seconds/move"]
[WhiteElo "2535"]
[BlackElo "2128"]

1. Nf3 {[%clk 00:05:05]} {[%emt 00:00:03]} d5 {[%clk 00:05:03]} {[%emt
00:00:01]} 2. g3 {[%clk 00:05:05]} {[%emt 00:00:03]} Nf6 {[%emt 00:00:02]} 3.
Bg2 c6 {[%clk 00:05:07]} {[%emt 00:00:02]} 4. O-O {[%clk 00:05:02]} {[%emt
00:00:07]} Bg4 {[%clk 00:05:08]} {[%emt 00:00:01]} 5. d3 {[%clk 00:05:02]}
{[%emt 00:00:04]} e6 {[%clk 00:05:08]} {[%emt 00:00:03]} 6. Nbd2 {[%clk
00:05:02]} {[%emt 00:00:03]} Nbd7 {[%clk 00:05:08]} {[%emt 00:00:03]} 7. b3
{[%clk 00:05:02]} {[%emt 00:00:03]} Bd6 {[%clk 00:05:08]} {[%emt 00:00:03]} 8.
Bb2 {[%clk 00:05:04]} {[%emt 00:00:02]} O-O {[%clk 00:05:09]} {[%emt 00:00:02]}
9. e4 {[%clk 00:05:01]} {[%emt 00:00:07]} Qe7 {[%clk 00:05:02]} {[%emt
00:00:10]} 10. a4 {[%clk 00:04:40]} {[%emt 00:00:24]} e5 {[%clk 00:04:48]}
{[%emt 00:00:17]} 11. Re1 {[%clk 00:04:28]} {[%emt 00:00:14]} Rfe8 {[%clk
00:04:35]} {[%emt 00:00:17]} 0-1

[Event "7° Rencontres Internationales des Echecs Francophones"]
[Site "PARIS, France"]
[Date "2019.08.10"]
[Round "2.6"]
[White "Sebag, Marie"]
[Black "Fontaine, Quentin"]
[Result "1-0"]
[TimeControl "90'+30' + 30seconds/move"]
[WhiteElo "2494"]
[BlackElo "2099"]

1. e4 {[%clk 00:05:05]} {[%emt 00:16:45]} e6 {[%clk 00:05:04]} 2. d4 {[%clk
00:05:04]} {[%emt 00:00:04]} d5 {[%clk 00:05:06]} 3. Nd2 {[%clk 00:05:06]} c5
{[%clk 00:05:08]} {[%emt 00:00:03]} 4. Ngf3 {[%clk 00:05:07]} {[%emt 00:00:02]}
cxd4 {[%clk 00:05:08]} {[%emt 00:00:03]} 5. Nxd4 {[%clk 00:05:09]} Nc6 {[%clk
00:05:08]} {[%emt 00:00:03]} 6. Bb5 {[%clk 00:05:08]} {[%emt 00:00:04]} Bd7
{[%clk 00:05:10]} {[%emt 00:00:01]} 7. Nxc6 {[%clk 00:05:09]} {[%emt 00:00:02]}
bxc6 {[%clk 00:05:12]} 8. Bd3 {[%clk 00:05:11]} {[%emt 00:00:01]} Bd6 {[%clk
00:05:09]} {[%emt 00:00:06]} 9. O-O {[%clk 00:05:07]} {[%emt 00:00:06]} Qb8
{[%clk 00:05:09]} {[%emt 00:00:03]} 10. h3 {[%clk 00:04:55]} {[%emt 00:00:15]}
Ne7 {[%clk 00:04:57]} {[%emt 00:00:15]} 11. c4 {[%clk 00:04:52]} {[%emt
00:00:07]} O-O {[%clk 00:04:50]} {[%emt 00:00:10]} 12. Nf3 {[%clk 00:04:42]}
{[%emt 00:00:14]} d4 {[%clk 00:04:08]} {[%emt 00:00:45]} 13. Nxd4 {[%clk
00:04:22]} {[%emt 00:00:22]} Ng6 {[%clk 00:03:50]} {[%emt 00:00:21]} 14. Nf3
{[%clk 00:04:09]} {[%emt 00:00:16]} e5 {[%clk 00:03:42]} {[%emt 00:00:11]} 15.
b3 {[%clk 00:04:03]} {[%emt 00:00:09]} Rd8 {[%clk 00:03:33]} {[%emt 00:00:12]}
16. Qe2 {[%clk 00:03:59]} {[%emt 00:00:08]} Bc5 {[%clk 00:03:27]} {[%emt
00:00:09]} 17. Be3 {[%clk 00:03:56]} {[%emt 00:00:07]} Qb6 {[%clk 00:03:15]}
{[%emt 00:00:15]} 18. Rad1 {[%clk 00:03:36]} {[%emt 00:00:22]} a5 {[%clk
00:03:11]} {[%emt 00:00:08]} 19. Bxc5 {[%clk 00:03:27]} {[%emt 00:00:12]} Qxc5
{[%clk 00:03:08]} {[%emt 00:00:06]} 20. Qe3 {[%clk 00:03:28]} {[%emt 00:00:02]}
Qb4 {[%clk 00:02:49]} {[%emt 00:00:22]} 21. c5 {[%clk 00:03:06]} {[%emt
00:00:25]} Be6 {[%clk 00:02:41]} {[%emt 00:00:12]} 22. Ng5 {[%clk 00:03:02]}
{[%emt 00:00:07]} Nf4 {[%clk 00:02:27]} {[%emt 00:00:17]} 23. Nxe6 {[%clk
00:02:47]} {[%emt 00:00:18]} Nxe6 {[%clk 00:02:26]} {[%emt 00:00:03]} 24. Bc4
{[%clk 00:02:45]} {[%emt 00:00:05]} Nd4 {[%clk 00:02:12]} {[%emt 00:00:17]} 25.
Rc1 {[%clk 00:02:23]} {[%emt 00:00:25]} Rd7 {[%clk 00:01:45]} {[%emt 00:00:30]}
26. f4 {[%clk 00:02:06]} {[%emt 00:00:20]} Re8 {[%clk 00:01:07]} {[%emt
00:00:41]} 27. fxe5 {[%clk 00:01:39]} {[%emt 00:00:31]} Rxe5 {[%clk 00:01:09]}
28. Rfd1 {[%clk 00:01:23]} {[%emt 00:00:19]} Qa3 {[%clk 00:00:36]} {[%emt
00:00:35]} 29. Rc3 {[%clk 00:00:41]} {[%emt 00:00:45]} 1-0



[ePGN "0.1;DGT LiveChess/2.2.4"]

[Event "7° Rencontres Internationales des Echecs Francophones"]
[Site "PARIS, France"]
[Date "2019.08.10"]
[Round "3.10"]
[White "Maisuradze, Nino"]
[Black "Prie, Eric"]
[Result "0-1"]
[TimeControl "90'+30' + 30seconds/move"]
[WhiteElo "2176"]
[BlackElo "2439"]

1. d4 {[%clk 00:05:05]} Nf6 {[%clk 00:05:05]} {[%emt 00:00:02]} 2. c4 {[%clk
00:05:05]} {[%emt 00:00:02]} c5 {[%emt 00:00:01]} 3. d5 {[%emt 00:00:01]} b5
{[%clk 00:05:08]} 4. cxb5 {[%clk 00:05:08]} {[%emt 00:00:04]} a6 {[%clk
00:05:10]} {[%emt 00:00:01]} 5. bxa6 {[%clk 00:05:10]} g6 {[%clk 00:05:12]} 6.
Nc3 {[%clk 00:05:13]} Bg7 {[%clk 00:05:14]} {[%emt 00:00:03]} 7. e4 {[%clk
00:05:12]} {[%emt 00:00:03]} O-O {[%clk 00:05:15]} {[%emt 00:00:02]} 8. Nf3
{[%clk 00:05:11]} {[%emt 00:00:05]} Qa5 {[%clk 00:05:16]} {[%emt 00:00:01]} 9.
Bd3 {[%clk 00:05:06]} {[%emt 00:00:08]} Nxd5 {[%clk 00:05:11]} {[%emt
00:00:08]} 10. exd5 {[%clk 00:05:01]} {[%emt 00:00:08]} Bxc3+ {[%clk 00:05:12]}
{[%emt 00:00:02]} 11. Kf1 {[%clk 00:04:05]} {[%emt 00:00:59]} Bg7 {[%clk
00:05:07]} {[%emt 00:00:08]} 12. h4 {[%clk 00:04:03]} {[%emt 00:00:05]} Bxa6
{[%clk 00:05:05]} {[%emt 00:00:05]} 13. Bxa6 {[%clk 00:03:29]} {[%emt
00:00:38]} Nxa6 {[%clk 00:04:59]} {[%emt 00:00:08]} 14. h5 {[%clk 00:03:30]}
{[%emt 00:00:02]} Rfb8 {[%clk 00:04:52]} {[%emt 00:00:09]} 15. hxg6 {[%clk
00:03:24]} {[%emt 00:00:09]} hxg6 {[%clk 00:04:52]} {[%emt 00:00:03]} 16. Ng5
{[%clk 00:03:15]} {[%emt 00:00:11]} Nc7 {[%clk 00:04:12]} {[%emt 00:00:43]} 17.
Qf3 {[%clk 00:03:08]} {[%emt 00:00:10]} Qa6+ {[%clk 00:04:10]} {[%emt
00:00:06]} 18. Kg1 {[%clk 00:03:04]} {[%emt 00:00:07]} Qf6 {[%clk 00:04:10]}
{[%emt 00:00:03]} 19. Qh3 {[%clk 00:03:02]} {[%emt 00:00:06]} Nxd5 {[%clk
00:04:07]} {[%emt 00:00:05]} 20. Qh7+ {[%clk 00:02:17]} {[%emt 00:00:48]} Kf8
{[%clk 00:04:09]} {[%emt 00:00:02]} 21. Ne4 {[%clk 00:02:15]} {[%emt 00:00:05]}
Qe5 {[%clk 00:03:28]} {[%emt 00:00:43]} 22. Bh6 {[%clk 00:02:14]} {[%emt
00:00:04]} Bxh6 {[%clk 00:03:27]} {[%emt 00:00:04]} 23. Qxh6+ {[%clk 00:01:22]}
{[%emt 00:00:55]} Qg7 {[%clk 00:03:26]} {[%emt 00:00:04]} 24. Nxc5 {[%clk
00:01:07]} {[%emt 00:00:18]} Qxh6 {[%clk 00:03:22]} {[%emt 00:00:07]} 25. Rxh6
{[%clk 00:01:07]} {[%emt 00:00:03]} Kg7 {[%clk 00:03:23]} {[%emt 00:00:01]} 26.
Rh4 {[%clk 00:00:19]} {[%emt 00:00:51]} Rxb2 {[%clk 00:03:20]} {[%emt
00:00:07]} 27. Nxd7 {[%clk 00:00:08]} {[%emt 00:00:14]} Raxa2 {[%clk 00:03:04]}
{[%emt 00:00:19]} 28. Rxa2 {[%clk 00:00:10]} Rxa2 {[%clk 00:03:06]} {[%emt
00:00:01]} 29. Rd4 {[%clk 00:00:12]} {[%emt 00:00:02]} e6 {[%clk 00:03:07]}
{[%emt 00:00:02]} 30. Ne5 {[%clk 00:00:13]} {[%emt 00:00:02]} g5 {[%clk
00:02:59]} {[%emt 00:00:10]} 31. g3 {[%clk 00:00:13]} {[%emt 00:00:03]} f5
{[%clk 00:02:55]} {[%emt 00:00:07]} 32. Rc4 {[%clk 00:00:12]} {[%emt 00:00:04]}
Kf6 {[%clk 00:02:54]} {[%emt 00:00:04]} 33. Nd7+ {[%clk 00:00:13]} {[%emt
00:00:02]} Ke7 {[%clk 00:02:55]} {[%emt 00:00:02]} 34. Ne5 {[%clk 00:00:15]}
{[%emt 00:00:02]} Re2 {[%clk 00:02:47]} {[%emt 00:00:11]} 35. Nc6+ {[%clk
00:00:11]} {[%emt 00:00:07]} Kd6 {[%clk 00:02:47]} {[%emt 00:00:03]} 36. Nd4
{[%clk 00:00:11]} {[%emt 00:00:02]} Ra2 {[%clk 00:02:39]} {[%emt 00:00:11]} 37.
Rc6+ {[%clk 00:00:09]} {[%emt 00:00:05]} Kd7 {[%clk 00:02:29]} {[%emt
00:00:13]} 38. Rxe6 {[%emt 00:00:26]} 0-1

[Event "7° Rencontres Internationales des Echecs Francophones"]
[Site "PARIS, France"]
[Date "2019.08.10"]
[Round "3.7"]
[White "Eden, James"]
[Black "Vedmediuc, Serghei"]
[Result "1/2-1/2"]
[TimeControl "90'+30' + 30seconds/move"]
[WhiteElo "2194"]
[BlackElo "2469"]

1. e4 {[%clk 00:05:03]} {[%emt 00:00:03]} c5 {[%clk 00:05:06]} 2. Nf3 {[%clk
00:05:00]} {[%emt 00:00:06]} Nc6 {[%clk 00:05:09]} 3. Nc3 {[%clk 00:04:55]}
{[%emt 00:00:08]} e6 {[%clk 00:05:11]} 4. d4 {[%clk 00:04:56]} {[%emt
00:00:02]} cxd4 {[%clk 00:05:13]} 5. Nxd4 {[%clk 00:04:57]} {[%emt 00:00:04]}
Qc7 {[%clk 00:05:15]} 6. Be3 {[%clk 00:04:50]} {[%emt 00:00:09]} a6 {[%clk
00:05:14]} {[%emt 00:00:05]} 7. Be2 {[%clk 00:04:50]} {[%emt 00:00:03]} Nf6
{[%clk 00:05:16]} {[%emt 00:00:01]} 8. O-O {[%clk 00:04:44]} {[%emt 00:00:09]}
Be7 {[%clk 00:05:09]} {[%emt 00:00:10]} 9. f4 {[%clk 00:04:41]} {[%emt
00:00:05]} d6 {[%clk 00:05:11]} 10. Kh1 {[%clk 00:04:39]} {[%emt 00:00:05]} O-O
{[%clk 00:05:00]} {[%emt 00:00:15]} 11. Qe1 {[%clk 00:04:35]} {[%emt 00:00:08]}
Bd7 {[%clk 00:05:02]} {[%emt 00:00:01]} 12. Rd1 {[%clk 00:04:33]} {[%emt
00:00:04]} Nxd4 {[%clk 00:05:01]} {[%emt 00:00:04]} 13. Bxd4 {[%clk 00:04:33]}
{[%emt 00:00:04]} Bc6 {[%clk 00:05:03]} 14. Bd3 {[%clk 00:04:08]} {[%emt
00:00:27]} b5 {[%clk 00:04:43]} {[%emt 00:00:24]} 15. e5 {[%clk 00:03:11]}
{[%emt 00:01:01]} dxe5 {[%clk 00:04:01]} {[%emt 00:00:44]} 16. fxe5 {[%clk
00:03:06]} {[%emt 00:00:08]} Nd7 {[%clk 00:03:53]} {[%emt 00:00:11]} 17. Qg3
{[%clk 00:02:22]} {[%emt 00:00:47]} f5 {[%clk 00:03:54]} {[%emt 00:00:03]} 18.
Ne2 {[%clk 00:01:59]} {[%emt 00:00:25]} Rf7 {[%clk 00:03:28]} {[%emt 00:00:29]}
19. Nf4 {[%clk 00:01:40]} {[%emt 00:00:23]} Nf8 {[%clk 00:03:30]} {[%emt
00:00:01]} 20. c4 {[%clk 00:01:23]} {[%emt 00:00:20]} Rd8 {[%clk 00:03:07]}
{[%emt 00:00:26]} 21. cxb5 {[%clk 00:01:03]} {[%emt 00:00:23]} axb5 {[%clk
00:03:07]} {[%emt 00:00:03]} 22. Qf2 {[%clk 00:00:29]} {[%emt 00:00:36]} Qb7
{[%clk 00:02:47]} {[%emt 00:00:24]} 23. Be2 {[%clk 00:00:25]} {[%emt 00:00:06]}
Bg5 {[%clk 00:02:40]} {[%emt 00:00:10]} 24. Nh3 {[%clk 00:00:12]} {[%emt
00:00:16]} Bh6 {[%clk 00:02:35]} {[%emt 00:00:09]} 25. Bf3 {[%clk 00:00:12]}
{[%emt 00:00:03]} Rfd7 {[%clk 00:02:30]} {[%emt 00:00:09]} 26. Bc5 {[%clk
00:00:07]} {[%emt 00:00:09]} Bxf3 {[%clk 00:02:22]} {[%emt 00:00:10]} 27. Rxd7
{[%clk 00:00:06]} {[%emt 00:00:03]} Bxg2+ {[%clk 00:02:23]} {[%emt 00:00:02]}
28. Qxg2 {[%clk 00:00:08]} {[%emt 00:00:02]} Qxg2+ {[%clk 00:02:25]} 29. Kxg2
{[%clk 00:00:10]} {[%emt 00:00:01]} Nxd7 {[%clk 00:02:21]} {[%emt 00:00:07]} 30.
Bd6 {[%clk 00:00:09]} {[%emt 00:00:04]} Rc8 {[%clk 00:02:13]} {[%emt 00:00:10]}
31. Rf3 {[%clk 00:00:07]} {[%emt 00:00:05]} Rc2+ {[%clk 00:02:01]} {[%emt
00:00:15]} 32. Rf2 {[%clk 00:00:09]} {[%emt 00:00:02]} Rxf2+ {[%clk 00:02:00]}
{[%emt 00:00:03]} 33. Nxf2 {[%clk 00:00:07]} {[%emt 00:00:05]} g5 {[%clk
00:02:02]} {[%emt 00:00:01]} 34. b3 {[%clk 00:00:07]} {[%emt 00:00:03]} g4
{[%clk 00:01:54]} {[%emt 00:00:10]} 35. a4 {[%clk 00:00:08]} {[%emt 00:00:03]}
bxa4 {[%clk 00:01:57]} 36. bxa4 {[%clk 00:00:09]} {[%emt 00:00:01]} Be3 {[%clk
00:01:58]} 37. a5 {[%clk 00:00:07]} {[%emt 00:00:05]} Kf7 {[%clk 00:01:57]}
{[%emt 00:00:04]} 38. a6 {[%clk 00:00:08]} {[%emt 00:00:02]} Ke8 {[%clk
00:01:59]} 39. Nd3 {[%clk 00:00:09]} {[%emt 00:00:03]} Kd8 {[%clk 00:01:58]}
{[%emt 00:00:03]} 40. Nb4 {[%clk 00:00:10]} {[%emt 00:00:03]} Kc8 {[%clk
00:01:53]} {[%emt 00:00:07]} 41. Nc6 {[%clk 00:00:10]} {[%emt 00:00:03]} h5
{[%clk 00:01:51]} {[%emt 00:00:06]} 42. a7 {[%clk 00:00:07]} {[%emt 00:00:06]}
Kb7 {[%clk 00:01:53]} 43. Nd8+ {[%clk 00:00:09]} Kxa7 {[%clk 00:01:55]} {[%emt
00:00:01]} 44. Nxe6 {[%clk 00:00:10]} f4 {[%clk 00:01:50]} {[%emt 00:00:09]} 45.
Ng5 {[%clk 00:00:12]} f3+ {[%clk 00:01:44]} {[%emt 00:00:09]} 46. Nxf3 {[%clk
00:00:13]} {[%emt 00:00:01]} gxf3+ {[%clk 00:01:46]} 47. Kxf3 {[%clk 00:00:15]}
{[%emt 00:00:01]} Bg5 {[%clk 00:01:48]} {[%emt 00:00:01]} 48. Ke4 {[%clk
00:00:13]} {[%emt 00:00:05]} Kb7 {[%clk 00:01:39]} {[%emt 00:00:12]} 49. Kf5
{[%clk 00:00:14]} {[%emt 00:00:02]} Bd8 {[%clk 00:01:03]} {[%emt 00:00:38]} 50.
e6 {[%clk 00:00:13]} {[%emt 00:00:05]} Kc6 {[%clk 00:01:06]} 51. e7 {[%clk
00:00:13]} {[%emt 00:00:03]} Bxe7 {[%clk 00:01:08]} 52. Bxe7 {[%clk 00:00:15]}
{[%emt 00:00:01]} Kd5 {[%clk 00:01:09]} {[%emt 00:00:02]} 53. Kg5 {[%clk
00:00:15]} {[%emt 00:00:02]} Ke6 {[%clk 00:01:12]} {[%emt 00:00:01]} 54. Ba3
{[%clk 00:00:16]} {[%emt 00:00:03]} Ne5 {[%clk 00:01:13]} {[%emt 00:00:02]} 55.
Kxh5 {[%clk 00:00:16]} {[%emt 00:00:02]} Kf5 {[%clk 00:01:13]} {[%emt
00:00:03]} 56. Bb2 {[%clk 00:00:13]} {[%emt 00:00:05]} Nf3 {[%clk 00:01:14]}
{[%emt 00:00:02]} 57. h3 {[%clk 00:00:15]} Ng1 {[%clk 00:01:16]} {[%emt
00:00:02]} 58. h4 {[%clk 00:00:16]} {[%emt 00:00:02]} Ke5 {[%emt 00:00:05]}
1/2-1/2

[Event "7° Rencontres Internationales des Echecs Francophones"]
[Site "PARIS, France"]
[Date "2019.08.10"]
[Round "3.2"]
[White "Ravot, Sylvain"]
[Black "Gurevich, Mikhail"]
[Result "0-1"]
[TimeControl "90'+30' + 30seconds/move"]
[WhiteElo "2228"]
[BlackElo "2559"]

1. e4 {[%clk 00:05:03]} {[%emt 00:00:03]} d6 {[%clk 00:05:05]} 2. d4 {[%clk
00:05:05]} {[%emt 00:00:02]} Nf6 {[%clk 00:05:07]} {[%emt 00:00:01]} 3. Nc3
{[%clk 00:05:06]} {[%emt 00:00:02]} g6 {[%clk 00:05:09]} 4. Nf3 {[%clk
00:05:02]} {[%emt 00:00:07]} Bg7 {[%clk 00:05:11]} {[%emt 00:00:01]} 5. Be2
{[%clk 00:05:01]} {[%emt 00:00:04]} O-O {[%clk 00:05:11]} {[%emt 00:00:03]} 6.
O-O {[%clk 00:05:01]} {[%emt 00:00:03]} Bg4 {[%clk 00:05:11]} {[%emt 00:00:02]}
7. Be3 {[%clk 00:04:45]} {[%emt 00:00:19]} Nc6 {[%clk 00:05:12]} {[%emt
00:00:02]} 8. d5 {[%clk 00:04:31]} {[%emt 00:00:18]} Bxf3 {[%clk 00:05:13]}
{[%emt 00:00:02]} 9. Bxf3 {[%clk 00:04:28]} {[%emt 00:00:06]} Ne5 {[%clk
00:05:14]} 10. Be2 {[%clk 00:04:30]} {[%emt 00:00:02]} c6 {[%clk 00:05:16]} 11.
h3 {[%clk 00:03:36]} {[%emt 00:00:58]} Qa5 {[%clk 00:05:11]} {[%emt 00:00:09]}
12. Qd2 {[%clk 00:03:30]} {[%emt 00:00:08]} Rfc8 {[%clk 00:05:11]} {[%emt
00:00:02]} 13. Rfd1 {[%clk 00:03:15]} {[%emt 00:00:18]} cxd5 {[%clk 00:04:36]}
{[%emt 00:00:38]} 14. Nxd5 {[%clk 00:02:43]} {[%emt 00:00:35]} Qxd2 {[%clk
00:04:34]} {[%emt 00:00:05]} 15. Nxf6+ {[%clk 00:02:43]} {[%emt 00:00:03]} Bxf6
{[%clk 00:04:35]} {[%emt 00:00:02]} 16. Rxd2 {[%clk 00:02:45]} {[%emt
00:00:02]} Nc4 {[%clk 00:04:34]} {[%emt 00:00:03]} 17. Bxc4 {[%clk 00:02:38]}
{[%emt 00:00:11]} Rxc4 {[%clk 00:04:35]} {[%emt 00:00:02]} 18. c3 {[%clk
00:01:05]} {[%emt 00:01:37]} Rxe4 {[%clk 00:04:33]} {[%emt 00:00:04]} 19. a4
{[%clk 00:01:00]} {[%emt 00:00:08]} a6 {[%clk 00:04:29]} {[%emt 00:00:07]} 20.
a5 {[%clk 00:00:42]} {[%emt 00:00:21]} Rc8 {[%clk 00:04:29]} {[%emt 00:00:02]}
21. Ra3 {[%clk 00:00:42]} {[%emt 00:00:04]} Rc7 {[%clk 00:04:19]} {[%emt
00:00:13]} 22. Kf1 {[%clk 00:00:44]} {[%emt 00:00:01]} Kf8 {[%clk 00:04:10]}
{[%emt 00:00:11]} 23. Bb6 {[%clk 00:00:40]} {[%emt 00:00:08]} Rd7 {[%clk
00:03:56]} {[%emt 00:00:16]} 24. Be3 {[%clk 00:00:32]} {[%emt 00:00:12]} Ke8
{[%clk 00:03:50]} {[%emt 00:00:09]} 25. Rd1 {[%clk 00:00:15]} {[%emt 00:00:20]}
d5 {[%clk 00:03:47]} {[%emt 00:00:05]} 26. Rd3 {[%clk 00:00:10]} {[%emt
00:00:10]} e6 {[%clk 00:03:47]} {[%emt 00:00:02]} 27. Ke2 {[%clk 00:00:07]}
{[%emt 00:00:06]} Be7 {[%clk 00:03:47]} {[%emt 00:00:03]} 28. Ra1 {[%clk
00:00:06]} {[%emt 00:00:04]} Bf6 {[%clk 00:03:31]} {[%emt 00:00:18]} 29. Kd2
{[%clk 00:00:07]} {[%emt 00:00:03]} Rc4 {[%clk 00:03:27]} {[%emt 00:00:06]} 30.
b3 {[%clk 00:00:05]} {[%emt 00:00:06]} Rc6 {[%clk 00:03:25]} {[%emt 00:00:05]}
31. Bd4 {[%clk 00:00:04]} {[%emt 00:00:04]} Ke7 {[%clk 00:03:19]} {[%emt
00:00:08]} 32. f3 {[%clk 00:00:06]} {[%emt 00:00:02]} Rdc7 {[%clk 00:03:20]}
{[%emt 00:00:02]} 33. Re1 {[%clk 00:00:07]} {[%emt 00:00:02]} Bxd4 {[%clk
00:03:20]} {[%emt 00:00:03]} 34. cxd4 {[%clk 00:00:06]} {[%emt 00:00:03]} Rc2+
{[%clk 00:03:21]} {[%emt 00:00:01]} 0-1